fUSD/lending_fUSD_20260126
["ID","MTS","AMOUNT","RATE_DAILY","PERIOD"]
[403617476,1769419839889,-151.0,0.00015591,2]
[403617478,1769419839898,-151.0,0.00015591,2]
[403617480,1769419839907,-151.0,0.00015591,2]
[403617482,1769419839917,-151.0,0.00015591,2]
[403617484,1769419839927,-151.0,0.00015591,2]
[403617486,1769419839936,-1000.0,0.00015597,2]
[403617488,1769419839946,-500.0,0.00015598,2]
[403617490,1769419839956,-250.0,0.00015598,2]
[403617492,1769419839966,-500.0,0.00015599,2]
[403617494,1769419839976,-500.0,0.00015599,2]
[403617496,1769419839985,-505.8124625,0.00015599,2]
[403617498,1769419839995,-621.79073632,0.00015599,2]
[403617500,1769419840004,-500.0,0.00015599,2]
[403617502,1769419840014,-500.0,0.00015599,2]
[403617504,1769419840024,-500.0,0.00015599,2]
[403617506,1769419840034,-500.0,0.00015599,2]
[403617508,1769419840044,-500.0,0.00015599,2]
[403617510,1769419840053,-500.0,0.00015599,2]
[403617513,1769419840067,-500.0,0.00015599,2]
[403617515,1769419840077,-500.0,0.00015599,2]
[403617517,1769419840088,-500.0,0.00015599,2]
[403617519,1769419840097,-500.0,0.00015599,2]
[403617521,1769419840107,-500.0,0.00015599,2]
[403617523,1769419840117,-500.0,0.00015599,2]
[403617525,1769419840126,-562.88447202,0.00015599,2]
[403617527,1769419840136,-500.0,0.00015599,2]
[403617529,1769419840146,-500.0,0.00015599,2]
[403617531,1769419840156,-512.6177601,0.00015599,2]
[403617533,1769419840165,-500.0,0.00015599,2]
[403617535,1769419840175,-500.0,0.00015599,2]
[403617537,1769419840185,-360.36954837,0.00015599,2]
[403617539,1769419840194,-261.8,0.00015599,2]
[403617541,1769419840203,-500.0,0.00015599,2]
[403617543,1769419840213,-588.82402791,0.00015599,2]
[403617545,1769419840223,-500.0,0.00015599,2]
[403617547,1769419840232,-500.0,0.00015599,2]
[403617549,1769419840242,-500.0,0.00015599,2]
[403617552,1769419840255,-500.0,0.00015599,2]
[403617553,1769419840265,-500.0,0.00015599,2]
[403617556,1769419840274,-500.0,0.00015599,2]
[403617558,1769419840284,-500.0,0.00015599,2]
[403617560,1769419840294,-500.0,0.00015599,2]
[403617562,1769419840303,-500.0,0.00015599,2]
[403617564,1769419840313,-500.0,0.00015599,2]
[403617566,1769419840322,-500.0,0.00015599,2]
[403617567,1769419840331,-500.0,0.00015599,2]
[403617569,1769419840341,-500.0,0.00015599,2]
[403617571,1769419840352,-500.0,0.00015599,2]
[403617573,1769419840361,-500.0,0.00015599,2]
[403617575,1769419840371,-500.0,0.00015599,2]
[403617577,1769419840380,-500.0,0.00015599,2]
[403617579,1769419840390,-474.17198166,0.00015599,2]
[403617580,1769419840400,-507.58212227,0.00015599,2]
[403617581,1769419840409,-150.0,0.00015599,2]
[403617582,1769419840419,-1000.0,0.000156,2]
[403617583,1769419840429,-166.66,0.00015603,2]
[403617584,1769419840438,-6094.31897371,0.00015619,2]
[403617585,1769419840451,-173.82376987,0.00015653,2]
[403617586,1769419840460,-500.0,0.00015699,2]
[403617587,1769419840470,-500.0,0.00015699,2]
[403617588,1769419840479,-293.07073164,0.00015699,2]
[403617589,1769419840490,-500.0,0.00015699,2]
[403617590,1769419840500,-500.0,0.00015699,2]
[403617591,1769419840510,-500.0,0.00015699,2]
[403617592,1769419840519,-500.0,0.00015699,2]
[403617593,1769419840898,-542.94,0.00015699,2]
[403617594,1769419840913,-542.94,0.00015699,2]
[403617595,1769419840923,-542.94,0.00015699,2]
[403617596,1769419840932,-542.94,0.00015699,2]
[403617597,1769419840942,-500.0,0.00015699,2]
[403617598,1769419840951,-500.0,0.00015699,2]
[403617599,1769419840960,-500.0,0.00015699,2]
[403617600,1769419840970,-500.0,0.00015699,2]
[403617601,1769419840979,-500.0,0.00015699,2]
[403617602,1769419840988,-500.0,0.00015699,2]
[403617603,1769419840998,-500.0,0.00015699,2]
[403617604,1769419841008,-500.0,0.00015699,2]
[403617605,1769419841017,-500.0,0.00015699,2]
[403617606,1769419841027,-500.0,0.00015699,2]
[403617607,1769419841036,-500.0,0.00015699,2]
[403617608,1769419841046,-500.0,0.00015699,2]
[403617609,1769419841055,-3774.97272606,0.00015767,2]
[403617610,1769419841064,-1000.0,0.000158,4]
[403617611,1769419841074,-1008.0,0.000158,5]
[403617612,1769419841083,-1007.8,0.000158,6]
[403617613,1769419841092,-300.0,0.000158,5]
[403617614,1769419841102,-311.53434585,0.00015873,2]
[403617615,1769419841122,-261.8,0.00015873,2]
[403617616,1769419841131,-500.0,0.00015899,2]
[403617617,1769419841142,-500.0,0.00015899,2]
[403617618,1769419841152,-500.0,0.00015899,2]
[403617619,1769419841161,-514.94989564,0.00015899,2]
[403617620,1769419841171,-500.0,0.00015899,2]
[403617621,1769419841180,-500.0,0.00015899,2]
[403617622,1769419841189,-500.0,0.00015899,2]
[403617623,1769419841199,-500.0,0.00015899,2]
[403617624,1769419841209,-244.60512809,0.000159,2]
[403617625,1769419841218,-600.0,0.000159,5]
[403617626,1769419841228,-6094.31897371,0.00015904,2]
[403617627,1769419841237,-3774.97272606,0.00016033,2]
[403617628,1769419841247,-656.34,0.00016045,2]
[403617629,1769419841257,-2237.22,0.00016075,2]
[403617630,1769419841267,-150.5654977,0.000161,2]
[403617631,1769419841276,-518.64988546,0.000161,2]
[403617632,1769419841286,-964.69647427,0.0001614,2]
[403617633,1769419841296,-1701.83892974,0.0001614,2]
[403617634,1769419841307,-2545.8492586,0.0001614,2]
[403617635,1769419841317,-3444.6159,0.0001614,2]
[403617636,1769419841326,-261.8,0.00016147,2]
[403617637,1769419841336,-183.27128089,0.00016189,2]
[403617638,1769419841345,-290.32,0.00016192,2]
[403617639,1769419841355,-226.43,0.00016254,2]
[403617640,1769419841365,-244.60512809,0.000163,2]
[403617641,1769419841375,-3774.97272606,0.000163,2]
[403617642,1769419841384,-305.29758295,0.00016339,2]
[403617643,1769419841393,-384.68255405,0.00016343,2]
[403617644,1769419841403,-570.07,0.00016356,2]
[403617645,1769419841412,-182.0,0.000164,2]
[403617646,1769419841422,-1086.0,0.000164,2]
[403617647,1769419841431,-1086.0,0.000164,2]
[403617648,1769419841441,-1086.0,0.000164,2]
[403617649,1769419841451,-1086.0,0.000164,2]
[403617650,1769419841460,-261.8,0.00016421,2]
[403617651,1769419841471,-514.56190828,0.00016428,2]
[403617652,1769419841480,-632.75172605,0.00016438,2]
[403617653,1769419841490,-534.26205379,0.00016438,2]
[403617654,1769419841500,-1352.81,0.00016438,2]
[403617655,1769419841509,-1352.81,0.00016438,2]
[403617656,1769419841519,-1352.81,0.00016438,2]
[403617657,1769419841529,-1352.81,0.00016438,2]
[403617658,1769419841538,-1352.81,0.00016438,2]
[403617659,1769419841553,-500.0,0.00016438,2]
[403617660,1769419841563,-500.0,0.00016438,2]
[403617661,1769419841573,-500.0,0.00016438,2]
[403617662,1769419841583,-500.0,0.00016438,2]
[403617663,1769419841595,-500.0,0.00016438,2]
[403617664,1769419841604,-500.0,0.00016438,2]
[403617665,1769419841614,-500.0,0.00016438,2]
[403617666,1769419841624,-500.0,0.00016438,2]
[403617667,1769419841634,-400.00000003,0.00016438,2]
[403617668,1769419841644,-500.0,0.00016438,2]
[403617669,1769419841654,-500.0,0.00016438,2]
[403617670,1769419841663,-329.20591,0.00016438,5]
[403617671,1769419841673,-600.0,0.00016509,2]
[403617672,1769419841683,-2500.0,0.00016509,2]
[403617673,1769419841693,-510.0,0.00016523,2]
[403617674,1769419841702,-3774.97272606,0.00016567,2]
[403617675,1769419841711,-789.0,0.00016678,2]
[403617676,1769419841721,-261.82640756,0.00016695,2]
[403617677,1769419841731,-244.60512809,0.000167,2]
[403617678,1769419841740,-518.64988546,0.000167,2]
[403617679,1769419841750,-578.20924308,0.00016718,2]
[403617680,1769419841760,-220.0,0.00016718,2]
[403617681,1769419841770,-220.0,0.00016718,2]
[403617682,1769419841779,-344.90178664,0.00016718,2]
[403617683,1769419841788,-209.40437684,0.00016718,2]
[403617684,1769419841798,-9552.16786547,0.00016718,2]
[403617685,1769419841807,-250.0,0.00016718,2]
[403617686,1769419841817,-167.05212111,0.00016718,2]
[403617687,1769419841826,-250.0,0.00016718,2]
[403617688,1769419841836,-250.0,0.00016718,2]
[403617689,1769419841845,-250.0,0.00016718,2]
[403617690,1769419841854,-721.12765535,0.00016718,2]
[403617691,1769419841864,-250.0,0.00016718,2]
[403617692,1769419841874,-250.0,0.00016718,2]
[403617693,1769419841883,-2349.0,0.00016718,2]
[403617694,1769419841893,-250.0,0.00016718,2]
[403617695,1769419841902,-250.0,0.00016718,2]
[403617696,1769419841911,-250.0,0.00016718,2]
[403617697,1769419841921,-250.0,0.00016718,2]
[403617698,1769419841930,-250.0,0.00016718,2]
[403617699,1769419841940,-250.0,0.00016718,2]
[403617700,1769419841950,-322.6107,0.00016718,2]
[403617701,1769419841960,-250.0,0.00016718,2]
[403617702,1769419841970,-250.0,0.00016718,2]
[403617703,1769419841980,-252.5692863,0.00016718,2]
[403617704,1769419841990,-250.0,0.00016718,2]
[403617705,1769419841999,-250.0,0.00016718,2]
[403617706,1769419842009,-174.61919141,0.00016718,2]
[403617707,1769419842018,-250.0,0.00016718,2]
[403617708,1769419842028,-1914.93439435,0.00016718,2]
[403617709,1769419842038,-250.0,0.00016718,2]
[403617710,1769419842047,-209.40437684,0.00016718,2]
[403617711,1769419842057,-2500.0,0.00016718,2]
[403617712,1769419842067,-2500.0,0.00016718,2]
[403617713,1769419842076,-2500.0,0.00016718,2]
[403617714,1769419842085,-2500.0,0.00016718,2]
[403617715,1769419842095,-2500.0,0.00016718,2]
[403617716,1769419842104,-2500.0,0.00016718,2]
[403617717,1769419842114,-2500.0,0.00016718,2]
[403617718,1769419842123,-250.0,0.00016718,2]
[403617719,1769419842133,-2500.0,0.00016718,2]
[403617720,1769419842143,-250.0,0.00016718,2]
[403617721,1769419842152,-2500.0,0.00016718,2]
[403617722,1769419842162,-209.40437684,0.00016718,2]
[403617725,1769419842174,-250.0,0.00016718,2]
[403617727,1769419842186,-2500.0,0.00016718,2]
[403617728,1769419842196,-2500.0,0.00016718,2]
[403617729,1769419842206,-250.0,0.00016718,2]
[403617730,1769419842215,-250.0,0.00016718,2]
[403617731,1769419842225,-151.0,0.00016718,2]
[403617732,1769419842234,-250.0,0.00016718,2]
[403617733,1769419842244,-250.0,0.00016718,2]
[403617734,1769419842253,-250.0,0.00016718,2]
[403617735,1769419842263,-250.0,0.00016718,2]
[403617736,1769419842272,-250.0,0.00016718,2]
[403617737,1769419842282,-250.0,0.00016718,2]
[403617738,1769419842291,-250.0,0.00016718,2]
[403617739,1769419842301,-250.0,0.00016718,2]
[403617740,1769419842311,-250.0,0.00016718,2]
[403617741,1769419842321,-250.0,0.00016718,2]
[403617743,1769419842331,-250.0,0.00016718,2]
[403617744,1769419842340,-500.0,0.00016718,2]
[403617745,1769419842350,-250.0,0.00016718,2]
[403617746,1769419842359,-500.0,0.00016718,2]
[403617747,1769419842369,-3000.0,0.00016718,2]
[403617748,1769419842378,-250.0,0.00016718,2]
[403617749,1769419842387,-500.0,0.00016718,2]
[403617750,1769419842395,-3000.0,0.00016718,2]
[403617751,1769419842405,-854.2589148,0.00016718,2]
[403617752,1769419842414,-250.0,0.00016718,2]
[403617753,1769419842423,-500.0,0.00016718,2]
[403617754,1769419842432,-250.0,0.00016718,2]
[403617755,1769419842441,-500.0,0.00016718,2]
[403617756,1769419842450,-3000.0,0.00016718,2]
[403617757,1769419842460,-250.0,0.00016718,2]
[403617758,1769419842469,-500.0,0.00016718,2]
[403617759,1769419842479,-3000.0,0.00016718,2]
[403617760,1769419842487,-250.0,0.00016718,2]
[403617761,1769419842496,-500.0,0.00016718,2]
[403617762,1769419842506,-3000.0,0.00016718,2]
[403617763,1769419842516,-500.0,0.00016718,2]
[403617764,1769419842525,-500.0,0.00016718,2]
[403617765,1769419842535,-500.0,0.00016718,2]
[403617766,1769419842547,-500.0,0.00016718,2]
[403617767,1769419842558,-151.0,0.00016718,2]
[403617768,1769419842567,-151.0,0.00016718,2]
[403617769,1769419842577,-151.0,0.00016718,2]
[403617770,1769419842586,-303.36635592,0.00016718,2]
[403617771,1769419842598,-250.0,0.00016718,2]
[403617772,1769419842607,-250.0,0.00016718,2]
[403617773,1769419842617,-250.0,0.00016718,2]
[403617774,1769419842629,-250.0,0.00016718,2]
[403617775,1769419842639,-250.0,0.00016718,2]
[403617776,1769419842649,-250.0,0.00016718,2]
[403617777,1769419842658,-250.0,0.00016718,2]
[403617778,1769419842668,-250.0,0.00016718,2]
[403617779,1769419842678,-250.0,0.00016718,2]
[403617780,1769419842687,-250.0,0.00016718,2]
[403617781,1769419842697,-250.0,0.00016718,2]
[403617782,1769419842707,-250.0,0.00016718,2]
[403617783,1769419842717,-250.0,0.00016718,2]
[403617784,1769419842727,-250.0,0.00016718,2]
[403617785,1769419842737,-250.0,0.00016718,2]
[403617786,1769419842747,-250.0,0.00016718,2]
[403617787,1769419842756,-250.0,0.00016718,2]
[403617788,1769419842766,-250.0,0.00016718,2]
[403617789,1769419842775,-1000.0,0.00016718,2]
[403617790,1769419842785,-250.0,0.00016718,2]
[403617791,1769419842795,-250.0,0.00016718,2]
[403617792,1769419842804,-250.0,0.00016718,2]
[403617793,1769419842814,-1000.0,0.00016718,2]
[403617794,1769419842823,-250.0,0.00016718,2]
[403617795,1769419842833,-250.0,0.00016718,2]
[403617796,1769419842842,-250.0,0.00016718,2]
[403617797,1769419842852,-1000.0,0.00016718,2]
[403617798,1769419842861,-250.0,0.00016718,2]
[403617799,1769419842870,-250.0,0.00016718,2]
[403617800,1769419842880,-250.0,0.00016718,2]
[403617801,1769419842889,-1000.0,0.00016718,2]
[403617802,1769419842898,-250.0,0.00016718,2]
[403617803,1769419842907,-1000.0,0.00016718,2]
[403617804,1769419842916,-250.0,0.00016718,2]
[403617805,1769419842926,-1000.0,0.00016718,2]
[403617806,1769419842935,-250.0,0.00016718,2]
[403617807,1769419842944,-1000.0,0.00016718,2]
[403617808,1769419842953,-250.0,0.00016718,2]
[403617809,1769419842963,-250.0,0.00016718,2]
[403617810,1769419842972,-1000.0,0.00016718,2]
[403617811,1769419842981,-250.0,0.00016718,2]
[403617812,1769419842990,-1000.0,0.00016718,2]
[403617813,1769419843000,-1000.0,0.00016718,2]
[403617814,1769419843009,-1000.0,0.00016718,2]
[403617815,1769419843018,-1086.0,0.0001672,2]
[403617816,1769419843027,-1086.0,0.0001672,2]
[403617817,1769419843036,-1086.0,0.0001672,2]
[403617818,1769419843046,-789.0,0.00016798,2]
[403617819,1769419843056,-3774.97272606,0.00016833,2]
[403617820,1769419843065,-2237.22,0.00016879,2]
[403617821,1769419843075,-641.30995619,0.00016884,2]
[403617822,1769419843085,-500.0,0.00016884,2]
[403617823,1769419843095,-500.0,0.00016884,2]
[403617824,1769419843105,-500.0,0.00016884,2]
[403617825,1769419843114,-500.0,0.00016884,2]
[403617826,1769419843124,-500.0,0.00016884,2]
[403617827,1769419843133,-500.0,0.00016884,2]
[403617828,1769419843143,-500.0,0.00016884,2]
[403617829,1769419843152,-500.0,0.00016884,2]
[403617830,1769419843162,-500.0,0.00016884,2]
[403617831,1769419843171,-500.93909876,0.00016884,2]
[403617832,1769419843181,-500.79595583,0.00016884,2]
[403617833,1769419843190,-500.0,0.00016884,2]
[403617834,1769419843200,-501.57799136,0.00016884,2]
[403617835,1769419843209,-500.46570167,0.00016884,2]
[403617836,1769419843218,-500.0,0.00016884,2]
[403617837,1769419843227,-500.0,0.00016884,2]
[403617838,1769419843237,-500.0,0.00016884,2]
[403617839,1769419843247,-789.0,0.00016918,2]
[403617840,1769419843256,-200.0,0.00016983,2]
[403617841,1769419843266,-250.0,0.00017,2]
[403617842,1769419843276,-131161.9361444,0.00017,2]
[403617843,1769419843287,-9453.16249989,0.00017,2]
[403617844,1769419843297,-596.0,0.00017,2]
[403617845,1769419843306,-158.49064135,0.00017015,2]
[403617846,1769419843316,-789.0,0.00017039,2]
[403617847,1769419843327,-1086.0,0.0001704,2]
[403617848,1769419843336,-837.0,0.0001704,2]
[403617849,1769419843347,-955.36,0.00017041,2]
[403617850,1769419843357,-969.46,0.00017041,2]
[403617851,1769419843367,-612.72,0.00017041,2]
[403617852,1769419843377,-183.27128089,0.00017045,2]
[403617853,1769419843387,-244.60512809,0.000171,2]
[403617854,1769419843396,-3774.97272606,0.000171,2]
[403617855,1769419843406,-1000.0,0.000171,6]
[403617856,1769419843416,-789.0,0.00017159,2]
[403617857,1769419843426,-182.99,0.00017178,2]
[403617858,1769419843435,-182.9,0.00017178,2]
[403617859,1769419843445,-727.34,0.00017178,2]
[403617860,1769419843455,-150.0,0.00017178,2]
[403617861,1769419843465,-172.23,0.00017178,2]
[403617862,1769419843474,-150.0,0.00017178,2]
[403617863,1769419843483,-468.76,0.00017178,2]
[403617864,1769419843492,-176.73,0.00017178,2]
[403617865,1769419843502,-150.0,0.00017178,2]
[403617866,1769419843511,-150.0,0.00017178,2]
[403617867,1769419843521,-172.23,0.00017178,2]
[403617868,1769419843531,-150.0,0.00017178,2]
[403617869,1769419843541,-558.94,0.00017178,2]
[403617870,1769419843555,-179.98,0.00017178,2]
[403617871,1769419843565,-150.0,0.00017178,2]
[403617872,1769419843575,-1231.6,0.00017178,2]
[403617873,1769419843586,-150.0,0.00017178,2]
[403617874,1769419843599,-150.0,0.00017178,2]
[403617875,1769419843609,-468.76,0.00017178,2]
[403617876,1769419843618,-172.23,0.00017178,2]
[403617877,1769419843630,-150.0,0.00017178,2]
[403617878,1769419843640,-179.98,0.00017178,2]
[403617879,1769419843649,-558.94,0.00017178,2]
[403617880,1769419843659,-1231.6,0.00017178,2]
[403617881,1769419843670,-150.0,0.00017178,2]
[403617882,1769419843679,-172.23,0.00017178,2]
[403617883,1769419843689,-150.0,0.00017178,2]
[403617884,1769419843698,-468.76,0.00017178,2]
[403617885,1769419843707,-150.0,0.00017178,2]
[403617886,1769419843716,-150.0,0.00017178,2]
[403617887,1769419843727,-1231.6,0.00017178,2]
[403617888,1769419843736,-558.94,0.00017178,2]
[403617889,1769419843746,-179.98,0.00017178,2]
[403617891,1769419843755,-150.0,0.00017178,2]
[403617894,1769419843764,-150.0,0.00017178,2]
[403617896,1769419843774,-468.76,0.00017178,2]
[403617899,1769419843784,-172.23,0.00017178,2]
[403617903,1769419843793,-150.0,0.00017178,2]
[403617906,1769419843804,-179.98,0.00017178,2]
[403617909,1769419843814,-150.0,0.00017178,2]
[403617912,1769419843823,-558.66,0.00017178,2]
[403617916,1769419843832,-1231.6,0.00017178,2]
[403617918,1769419843842,-172.23,0.00017178,2]
[403617920,1769419843852,-150.0,0.00017178,2]
[403617921,1769419843862,-150.0,0.00017178,2]
[403617922,1769419843871,-468.76,0.00017178,2]
[403617923,1769419843880,-150.0,0.00017178,2]
[403617924,1769419843890,-1231.6,0.00017178,2]
[403617925,1769419843900,-172.23,0.00017178,2]
[403617926,1769419843910,-179.98,0.00017178,2]
[403617928,1769419843919,-150.0,0.00017178,2]
[403617930,1769419843928,-150.0,0.00017178,2]
[403617932,1769419843938,-468.76,0.00017178,2]
[403617934,1769419843947,-172.23,0.00017178,2]
[403617935,1769419843960,-150.0,0.00017178,2]
[403617936,1769419843969,-179.98,0.00017178,2]
[403617937,1769419843979,-482.83,0.00017178,2]
[403617938,1769419843989,-162.57,0.00017178,2]
[403617939,1769419844000,-179.98,0.00017178,2]
[403617940,1769419844010,-379.88,0.00017178,2]
[403617941,1769419844019,-150.0,0.00017178,2]
[403617942,1769419844029,-1300.0,0.000172,6]
[403617943,1769419844038,-281.661,0.00017229,2]
[403617944,1769419844048,-916.0,0.00017229,2]
[403617945,1769419844058,-1204.0,0.00017229,2]
[403617946,1769419844067,-1335.515,0.00017229,2]
[403617947,1769419844077,-621.408,0.00017229,2]
[403617948,1769419844086,-4831.0,0.00017229,2]
[403617949,1769419844096,-181.08010149,0.00017266,2]
[403617950,1769419844105,-151.0,0.00017266,2]
[403617951,1769419844115,-885.86649465,0.00017266,2]
[403617952,1769419844124,-789.0,0.00017279,2]
[403617953,1769419844134,-560.38,0.00017293,2]
[403617954,1769419844143,-518.64988546,0.000173,2]
[403617955,1769419844153,-1600.0,0.000173,6]
[403617956,1769419844162,-1086.0,0.0001736,2]
[403617957,1769419844173,-3774.97272606,0.00017367,2]
[403617958,1769419844182,-789.0,0.00017399,2]
[403617959,1769419844191,-300.0,0.000174,6]
[403617960,1769419844200,-1352.81,0.00017431,2]
[403617961,1769419844210,-252.73340052,0.00017432,2]
[403617962,1769419844219,-1000.0,0.00017432,2]
[403617963,1769419844228,-1000.0,0.00017432,2]
[403617964,1769419844238,-1000.0,0.00017432,2]
[403617965,1769419844247,-497.96084495,0.00017432,2]
[403617966,1769419844256,-725.87248406,0.00017432,2]
[403617967,1769419844266,-1000.0,0.00017432,2]
[403617968,1769419844275,-1000.0,0.00017432,2]
[403617969,1769419844288,-1000.0,0.00017432,2]
[403617970,1769419844298,-1000.0,0.00017432,2]
[403617971,1769419844307,-826.24971363,0.00017432,2]
[403617972,1769419844317,-502.64656649,0.00017432,2]
[403617973,1769419844326,-300.8,0.00017452,2]
[403617974,1769419844336,-151.0,0.00017497,2]
[403617975,1769419844345,-244.60512809,0.000175,2]
[403617976,1769419844354,-257278.96660064,0.000175,3]
[403617977,1769419844364,-150.0,0.000175,2]
[403617978,1769419844374,-300.0,0.000175,6]
[403617979,1769419844383,-789.0,0.00017519,2]
[403617980,1769419844392,-560.38,0.00017567,2]
[403617981,1769419844402,-300.0,0.000176,6]
[403617982,1769419844412,-753.04363975,0.00017606,2]
[403617983,1769419844421,-500.0,0.00017612,2]
[403617984,1769419844431,-558.8,0.00017616,2]
[403617985,1769419844441,-558.94,0.00017616,2]
[403617986,1769419844450,-558.94,0.00017616,2]
[403617987,1769419844460,-558.94,0.00017616,2]
[403617988,1769419844470,-3774.97272606,0.00017633,2]
[403617990,1769419844484,-596.0,0.00017636,2]
[403617991,1769419844494,-789.0,0.00017639,2]
[403617992,1769419844503,-4663.03143383,0.0001764,2]
[403617993,1769419844514,-25000.0,0.00017671,3]
[403617994,1769419844524,-20050.25542141,0.00017675,2]
[403617995,1769419844533,-347.0,0.00017679,2]
[403617996,1769419844543,-826.0,0.0001768,2]
[403617997,1769419844556,-1086.0,0.0001768,2]
[403617998,1769419844566,-1086.0,0.0001768,2]
[403617999,1769419844575,-1086.0,0.0001768,2]
[403618000,1769419844585,-25000.0,0.0001768,3]
[403618001,1769419844597,-2237.22,0.00017683,2]
[403618002,1769419844606,-25000.0,0.00017689,3]
[403618003,1769419844616,-25000.0,0.00017698,3]
[403618004,1769419844628,-300.0,0.000177,6]
[403618005,1769419844638,-403.0,0.000177,5]
[403618006,1769419844648,-2508.0,0.000177,2]
[403618007,1769419844658,-25000.0,0.00017706,3]
[403618008,1769419844668,-25000.0,0.00017715,3]
[403618009,1769419844678,-25000.0,0.00017724,3]
[403618010,1769419844692,-1198.0,0.00017726,2]
[403618011,1769419844701,-1352.81,0.00017732,2]
[403618012,1769419844712,-25000.0,0.00017733,3]
[403618013,1769419844721,-25000.0,0.00017742,3]
[403618014,1769419844730,-25000.0,0.0001775,3]
[403618015,1769419844740,-753.04363973,0.00017753,2]
[403618016,1769419844749,-500.0,0.00017755,2]
[403618017,1769419844759,-500.0,0.00017755,2]
[403618018,1769419844769,-500.0,0.00017755,2]
[403618019,1769419844778,-500.0,0.00017755,2]
[403618020,1769419844787,-500.0,0.00017755,2]
[403618021,1769419844797,-500.0,0.00017755,2]
[403618022,1769419844807,-500.0,0.00017755,2]
[403618023,1769419844817,-500.0,0.00017755,2]
[403618024,1769419844826,-500.0,0.00017755,2]
[403618025,1769419844836,-500.0,0.00017755,2]
[403618026,1769419844846,-500.0,0.00017755,2]
[403618027,1769419844857,-500.0,0.00017755,2]
[403618028,1769419844867,-500.0,0.00017755,2]
[403618029,1769419844881,-500.0,0.00017755,2]
[403618030,1769419844891,-500.0,0.00017755,2]
[403618031,1769419844901,-500.0,0.00017755,2]
[403618032,1769419844911,-500.0,0.00017755,2]
[403618033,1769419844921,-25000.0,0.00017759,3]
[403618034,1769419844931,-789.0,0.0001776,2]
[403618035,1769419844941,-25000.0,0.00017768,3]
[403618036,1769419844952,-25000.0,0.00017777,3]
[403618037,1769419844967,-1352.81,0.00017785,2]
[403618038,1769419844976,-25000.0,0.00017786,3]
[403618040,1769419845321,-179.76,0.00017789,2]
[403618041,1769419845331,-25000.0,0.00017794,3]
[403618042,1769419845340,-746.0,0.000178,6]
[403618043,1769419845350,-25000.0,0.00017803,3]
[403618044,1769419845359,-500.0,0.00017808,2]
[403618045,1769419845368,-214.75381521,0.00017809,2]
[403618046,1769419845380,-25000.0,0.00017812,3]
[403618047,1769419845390,-187.78006525,0.00017814,2]
[403618048,1769419845399,-151.0,0.00017814,2]
[403618049,1769419845409,-918.64355495,0.00017814,2]
[403618050,1769419845419,-2602.30488931,0.0001782,2]
[403618051,1769419845430,-25000.0,0.00017821,3]
[403618052,1769419845439,-25000.0,0.0001783,3]
[403618053,1769419845449,-6719.06641575,0.0001783,2]
[403618054,1769419845459,-25000.0,0.00017838,3]
[403618055,1769419845468,-560.38,0.00017841,2]
[403618056,1769419845478,-25000.0,0.00017847,3]
[403618057,1769419845488,-200.0,0.00017855,2]